[Event "Live Chess"]
[Site "Chess.com"]
[Date "2023.05.20"]
[Round "-"]
[White "Inglaterra"]
[Black "friarnator"]
[Result "1-0"]
[WhiteElo "2088"]
[BlackElo "1971"]
[TimeControl "300"]
[EndTime "10:06:54 PDT"]
[Termination "Inglaterra won by resignation"]

1. e4 {[%clk 0:04:59.1]} 1... c5 {[%clk 0:04:57.7]} 2. Nf3 {[%clk 0:04:58.4]}
2... d6 {[%clk 0:04:56.9]} 3. d4 {[%clk 0:04:47.4]} 3... cxd4 {[%clk 0:04:56.8]}
4. Nxd4 {[%clk 0:04:46.5]} 4... Nf6 {[%clk 0:04:55.8]} 5. Nc3 {[%clk 0:04:42.4]}
5... a6 {[%clk 0:04:54.4]} 6. Bg5 {[%clk 0:04:37.2]} 6... e6 {[%clk 0:04:52.4]}
7. f4 {[%clk 0:04:34.9]} 7... h6 {[%clk 0:04:51.7]} 8. Bxf6 {[%clk 0:04:32.8]}
8... Qxf6 {[%clk 0:04:50.7]} 9. Qd2 {[%clk 0:04:29.6]} 9... g5 {[%clk
0:04:48.3]} 10. f5 {[%clk 0:04:11.3]} 10... exf5 {[%clk 0:04:40.5]} 11. Nxf5
{[%clk 0:04:04.3]} 11... Bxf5 {[%clk 0:04:38.5]} 12. exf5 {[%clk 0:04:03.9]}
12... Qxf5 {[%clk 0:04:35.8]} 13. O-O-O {[%clk 0:03:58.7]} 13... Qf4 {[%clk
0:04:28.3]} 14. Re1+ {[%clk 0:03:54.9]} 14... Kd8 {[%clk 0:04:23.4]} 15. Re3
{[%clk 0:03:48.1]} 15... Nc6 {[%clk 0:04:20.6]} 16. Nd5 {[%clk 0:03:44.8]} 16...
Bg7 {[%clk 0:04:10.4]} 17. Nxf4 {[%clk 0:03:42.2]} 1-0

[Event "Live Chess"]
[Site "Chess.com"]
[Date "2023.05.20"]
[Round "-"]
[White "Assassin696969"]
[Black "nigelst"]
[Result "1/2-1/2"]
[WhiteElo "2114"]
[BlackElo "1847"]
[TimeControl "300"]
[EndTime "10:06:55 PDT"]
[Termination "Game drawn - insufficient material"]

1. e4 {[%clk 0:04:59.1]} 1... c6 {[%clk 0:04:59.1]} 2. Nc3 {[%clk 0:04:57.7]}
2... d5 {[%clk 0:04:58.8]} 3. Nf3 {[%clk 0:04:57.3]} 3... Bg4 {[%clk 0:04:56.9]}
4. h3 {[%clk 0:04:56.2]} 4... Bxf3 {[%clk 0:04:55.5]} 5. Qxf3 {[%clk 0:04:56.1]}
5... Nf6 {[%clk 0:04:54.3]} 6. g3 {[%clk 0:04:49.3]} 6... dxe4 {[%clk
0:04:50.1]} 7. Nxe4 {[%clk 0:04:49.2]} 7... Nxe4 {[%clk 0:04:49.1]} 8. Qxe4
{[%clk 0:04:48.6]} 8... Qd5 {[%clk 0:04:48.2]} 9. Bg2 {[%clk 0:04:45]} 9...
Qxe4+ {[%clk 0:04:46.6]} 10. Bxe4 {[%clk 0:04:44.9]} 10... Nd7 {[%clk
0:04:43.5]} 11. c3 {[%clk 0:04:42.2]} 11... Nf6 {[%clk 0:04:43]} 12. Bg2 {[%clk
0:04:41.4]} 12... e6 {[%clk 0:04:40.9]} 13. O-O {[%clk 0:04:40.5]} 13... Bd6
{[%clk 0:04:39.7]} 14. d4 {[%clk 0:04:39.5]} 14... O-O {[%clk 0:04:38.7]} 15.
Bg5 {[%clk 0:04:36.5]} 15... Nd7 {[%clk 0:04:34.3]} 16. Rfe1 {[%clk 0:04:20.5]}
16... Rfe8 {[%clk 0:04:31.5]} 17. Rad1 {[%clk 0:04:18.3]} 17... Be7 {[%clk
0:04:30.2]} 18. Bf4 {[%clk 0:04:12.8]} 18... Nf6 {[%clk 0:04:25.7]} 19. a4
{[%clk 0:04:05.4]} 19... Rad8 {[%clk 0:04:24.1]} 20. a5 {[%clk 0:03:59]} 20...
Bd6 {[%clk 0:04:23]} 21. Be5 {[%clk 0:03:53.2]} 21... Bxe5 {[%clk 0:04:21.7]}
22. Rxe5 {[%clk 0:03:49.1]} 22... a6 {[%clk 0:04:15.8]} 23. c4 {[%clk
0:03:33.6]} 23... Rd7 {[%clk 0:04:02.6]} 24. d5 {[%clk 0:03:14.6]} 24... Red8
{[%clk 0:03:56]} 25. Kh2 {[%clk 0:02:44.4]} 25... cxd5 {[%clk 0:03:55]} 26. cxd5
{[%clk 0:02:40.5]} 26... Nxd5 {[%clk 0:03:53.9]} 27. Rc1 {[%clk 0:02:32.2]}
27... Kf8 {[%clk 0:03:50.1]} 28. Rh5 {[%clk 0:02:29.8]} 28... h6 {[%clk
0:03:47.9]} 29. Rh4 {[%clk 0:02:29.1]} 29... Ke7 {[%clk 0:03:45.8]} 30. Rg4
{[%clk 0:02:24.5]} 30... g5 {[%clk 0:03:43.4]} 31. Rgc4 {[%clk 0:02:23.7]} 31...
Nf6 {[%clk 0:03:21.8]} 32. Rc7 {[%clk 0:02:17.6]} 32... Rxc7 {[%clk 0:03:18.5]}
33. Rxc7+ {[%clk 0:02:17.5]} 33... Rd7 {[%clk 0:03:17.6]} 34. Rxb7 {[%clk
0:02:16.1]} 34... Rxb7 {[%clk 0:03:15.1]} 35. Bxb7 {[%clk 0:02:16]} 35... Kd6
{[%clk 0:02:58.4]} 36. Bxa6 {[%clk 0:02:14.1]} 36... Kc5 {[%clk 0:02:57.6]} 37.
Bd3 {[%clk 0:02:02.4]} 37... Nd5 {[%clk 0:02:51.2]} 38. h4 {[%clk 0:01:38.5]}
38... Kb4 {[%clk 0:02:48.1]} 39. hxg5 {[%clk 0:01:34]} 39... hxg5 {[%clk
0:02:46.3]} 40. a6 {[%clk 0:01:32.9]} 40... Kb3 {[%clk 0:02:26.3]} 41. Be4
{[%clk 0:01:21.9]} 41... Nb6 {[%clk 0:02:25.1]} 42. a7 {[%clk 0:01:17.2]} 42...
Kxb2 {[%clk 0:02:24.2]} 43. a8=Q {[%clk 0:01:16.4]} 43... Nxa8 {[%clk
0:02:23.3]} 44. Bxa8 {[%clk 0:01:15.5]} 44... Kc3 {[%clk 0:02:21.9]} 45. Kg2
{[%clk 0:01:10.6]} 45... Kd4 {[%clk 0:02:19]} 46. Kf3 {[%clk 0:01:09.1]} 46...
Ke5 {[%clk 0:02:18]} 47. Ke3 {[%clk 0:01:06.7]} 47... f5 {[%clk 0:02:16.4]} 48.
f4+ {[%clk 0:01:05.4]} 48... gxf4+ {[%clk 0:02:14.9]} 49. gxf4+ {[%clk
0:01:04.9]} 49... Kd6 {[%clk 0:02:08]} 50. Bf3 {[%clk 0:00:52.6]} 50... e5
{[%clk 0:02:06.3]} 51. Bh5 {[%clk 0:00:49.7]} 51... exf4+ {[%clk 0:02:04.6]} 52.
Kxf4 {[%clk 0:00:49.6]} 52... Ke6 {[%clk 0:02:03.6]} 53. Bg4 {[%clk 0:00:49]}
53... fxg4 {[%clk 0:02:01.7]} 54. Kxg4 {[%clk 0:00:48.9]} 1/2-1/2

[Event "Live Chess"]
[Site "Chess.com"]
[Date "2023.05.20"]
[Round "-"]
[White "TDCMF"]
[Black "jagbama"]
[Result "0-1"]
[WhiteElo "340"]
[BlackElo "1132"]
[TimeControl "300"]
[EndTime "10:06:55 PDT"]
[Termination "jagbama won by checkmate"]

1. e4 {[%clk 0:04:57.5]} 1... e5 {[%clk 0:04:58.6]} 2. Nf3 {[%clk 0:04:55.7]}
2... Nc6 {[%clk 0:04:55.7]} 3. Bc4 {[%clk 0:04:54]} 3... Bc5 {[%clk 0:04:52.9]}
4. Ng5 {[%clk 0:04:47.7]} 4... Qxg5 {[%clk 0:04:50.9]} 5. d3 {[%clk 0:04:35.6]}
5... Qxg2 {[%clk 0:04:48.1]} 6. Rf1 {[%clk 0:04:28]} 6... Nd4 {[%clk 0:04:42.2]}
7. Qh5 {[%clk 0:04:25.6]} 7... Nf3+ {[%clk 0:04:34.3]} 8. Ke2 {[%clk 0:04:18]}
8... Nd4+ {[%clk 0:04:08.6]} 9. Ke1 {[%clk 0:04:07]} 9... Nxc2+ {[%clk
0:03:59.4]} 10. Kd2 {[%clk 0:03:52.2]} 10... Nxa1 {[%clk 0:03:40]} 11. Qxf7+
{[%clk 0:03:49.2]} 11... Kd8 {[%clk 0:03:38.8]} 12. Qf8+ {[%clk 0:03:47.5]}
12... Bxf8 {[%clk 0:03:37.6]} 13. Nc3 {[%clk 0:03:38.6]} 13... Qxf1 {[%clk
0:03:33.7]} 14. Ne2 {[%clk 0:03:33.4]} 14... Qxf2 {[%clk 0:03:29.3]} 15. Bxg8
{[%clk 0:03:29.3]} 15... Bb4+ {[%clk 0:03:24.1]} 16. Kd1 {[%clk 0:03:27.8]}
16... Qe1# {[%clk 0:03:22.4]} 0-1

[Event "Live Chess"]
[Site "Chess.com"]
[Date "2023.05.20"]
[Round "-"]
[White "thrithik"]
[Black "MaximKhimchenko"]
[Result "0-1"]
[WhiteElo "470"]
[BlackElo "1366"]
[TimeControl "300"]
[EndTime "10:06:59 PDT"]
[Termination "MaximKhimchenko won by checkmate"]

1. a3 {[%clk 0:04:57.5]} 1... e5 {[%clk 0:04:59.9]} 2. Nc3 {[%clk 0:04:54.1]}
2... d5 {[%clk 0:04:58.7]} 3. Nf3 {[%clk 0:04:51.2]} 3... e4 {[%clk 0:04:57.5]}
4. Ne5 {[%clk 0:04:47.5]} 4... Nf6 {[%clk 0:04:53.9]} 5. Nb5 {[%clk 0:04:37.9]}
5... Bd6 {[%clk 0:04:53.8]} 6. Nxf7 {[%clk 0:04:30.5]} 6... Kxf7 {[%clk
0:04:50.4]} 7. Nxd6+ {[%clk 0:04:17.9]} 7... Qxd6 {[%clk 0:04:50.3]} 8. b4
{[%clk 0:04:14.5]} 8... Ng4 {[%clk 0:03:49.6]} 9. d3 {[%clk 0:04:12.8]} 9... Qf6
{[%clk 0:03:47.8]} 10. f3 {[%clk 0:04:11.9]} 10... Ne5 {[%clk 0:03:44.2]} 11.
fxe4 {[%clk 0:04:10.2]} 11... dxe4 {[%clk 0:03:43.1]} 12. dxe4 {[%clk
0:04:08.1]} 12... Ng4 {[%clk 0:03:42.2]} 13. Qd5+ {[%clk 0:03:58.1]} 13... Be6
{[%clk 0:03:38.5]} 14. Qxb7 {[%clk 0:03:53.4]} 14... Nd7 {[%clk 0:03:36.3]} 15.
Qxc7 {[%clk 0:03:49.4]} 15... Rac8 {[%clk 0:03:33.9]} 16. Qxa7 {[%clk
0:03:45.7]} 16... Rxc2 {[%clk 0:03:29]} 17. Bf4 {[%clk 0:03:36.8]} 17... Qxf4
{[%clk 0:03:26.4]} 18. Rd1 {[%clk 0:03:28]} 18... Rd8 {[%clk 0:03:08.5]} 19.
Rxd7+ {[%clk 0:03:25.7]} 19... Rxd7 {[%clk 0:01:52.6]} 20. Qa8 {[%clk
0:03:22.1]} 20... Qf2# {[%clk 0:01:46]} 0-1

[Event "Live Chess"]
[Site "Chess.com"]
[Date "2023.05.20"]
[Round "-"]
[White "ms_lilley"]
[Black "ZackirtyChess"]
[Result "0-1"]
[WhiteElo "564"]
[BlackElo "1154"]
[TimeControl "300"]
[EndTime "10:07:03 PDT"]
[Termination "ZackirtyChess won - game abandoned"]

1. d4 {[%clk 0:04:58.6]} 1... f5 {[%clk 0:04:57.4]} 2. e3 {[%clk 0:04:56.2]}
2... Nc6 {[%clk 0:04:45.2]} 3. a3 {[%clk 0:04:54.4]} 3... Nf6 {[%clk 0:04:42.6]}
4. Nf3 {[%clk 0:04:52.1]} 4... g6 {[%clk 0:04:40.9]} 5. h3 {[%clk 0:04:49.3]}
5... Bg7 {[%clk 0:04:38.7]} 6. c3 {[%clk 0:04:46]} 6... d5 {[%clk 0:04:32.4]} 7.
b4 {[%clk 0:04:43.6]} 7... a6 {[%clk 0:04:29.8]} 8. a4 {[%clk 0:04:38.1]} 8...
O-O {[%clk 0:04:27.1]} 9. b5 {[%clk 0:04:36]} 9... axb5 {[%clk 0:04:23.8]} 10.
Bxb5 {[%clk 0:04:33.9]} 10... Na7 {[%clk 0:04:21.2]} 11. Qd3 {[%clk 0:04:05.6]}
11... c6 {[%clk 0:04:12.8]} 0-1

[Event "Live Chess"]
[Site "Chess.com"]
[Date "2023.05.20"]
[Round "-"]
[White "ClassyChameleon"]
[Black "Ishaan1618"]
[Result "1-0"]
[WhiteElo "1043"]
[BlackElo "708"]
[TimeControl "300"]
[EndTime "10:07:07 PDT"]
[Termination "ClassyChameleon won by checkmate"]

1. e4 {[%clk 0:04:58.4]} 1... d6 {[%clk 0:04:56.4]} 2. Nf3 {[%clk 0:04:57.1]}
2... e5 {[%clk 0:04:55]} 3. Bc4 {[%clk 0:04:53.1]} 3... Bd7 {[%clk 0:04:48.2]}
4. d3 {[%clk 0:04:51.8]} 4... Qe7 {[%clk 0:04:47.2]} 5. O-O {[%clk 0:04:49.2]}
5... Na6 {[%clk 0:04:43.4]} 6. a3 {[%clk 0:04:47.5]} 6... O-O-O {[%clk 0:04:41]}
7. Nc3 {[%clk 0:04:42.9]} 7... g6 {[%clk 0:04:24.2]} 8. Nd5 {[%clk 0:04:37]}
8... Qe8 {[%clk 0:03:52.2]} 9. Bg5 {[%clk 0:04:30.3]} 9... Be7 {[%clk 0:03:47]}
10. Nxe7+ {[%clk 0:04:27.8]} 10... Nxe7 {[%clk 0:03:43.8]} 11. Bxa6 {[%clk
0:04:07.7]} 11... bxa6 {[%clk 0:03:41.5]} 12. c4 {[%clk 0:04:05.8]} 12... Ba4
{[%clk 0:03:34.9]} 13. b3 {[%clk 0:04:03]} 13... Bd7 {[%clk 0:03:26.9]} 14. d4
{[%clk 0:03:54.1]} 14... exd4 {[%clk 0:03:24]} 15. Qxd4 {[%clk 0:03:52.9]} 15...
Qf8 {[%clk 0:03:13.9]} 16. Qxa7 {[%clk 0:03:49.4]} 16... Bb5 {[%clk 0:03:05.8]}
17. cxb5 {[%clk 0:03:42.8]} 17... Qe8 {[%clk 0:02:47.6]} 18. bxa6 {[%clk
0:03:36]} 18... Kd7 {[%clk 0:02:40.3]} 19. Rad1 {[%clk 0:03:24.4]} 19... Ra8
{[%clk 0:02:38]} 20. Qb7 {[%clk 0:03:19.4]} 20... Rb8 {[%clk 0:02:35.4]} 21. Qa7
{[%clk 0:03:12.1]} 21... Rb7 {[%clk 0:02:35.3]} 22. axb7 {[%clk 0:03:09.2]}
22... Kd8 {[%clk 0:02:29.7]} 23. b8=Q+ {[%clk 0:03:00.3]} 23... Kd7 {[%clk
0:02:27.2]} 24. Qbxc7+ {[%clk 0:02:59.8]} 24... Ke6 {[%clk 0:02:23.9]} 25. Qxe7+
{[%clk 0:02:59.1]} 25... Qxe7 {[%clk 0:02:19.6]} 26. Qxe7# {[%clk 0:02:58.8]}
1-0

[Event "Live Chess"]
[Site "Chess.com"]
[Date "2023.05.20"]
[Round "-"]
[White "bristolunichess"]
[Black "boilerboy1"]
[Result "1-0"]
[WhiteElo "1876"]
[BlackElo "1095"]
[TimeControl "300"]
[EndTime "10:07:10 PDT"]
[Termination "bristolunichess won by checkmate"]

1. e4 {[%clk 0:04:58.2]} 1... e5 {[%clk 0:04:56.7]} 2. Nf3 {[%clk 0:04:56.5]}
2... d6 {[%clk 0:04:55.1]} 3. Bc4 {[%clk 0:04:50.5]} 3... Be7 {[%clk 0:04:53.7]}
4. d4 {[%clk 0:04:48.4]} 4... exd4 {[%clk 0:04:51.7]} 5. Nxd4 {[%clk 0:04:47.8]}
5... Nf6 {[%clk 0:04:50.2]} 6. Nc3 {[%clk 0:04:46.3]} 6... c6 {[%clk 0:04:48.2]}
7. O-O {[%clk 0:04:43.7]} 7... O-O {[%clk 0:04:45.4]} 8. a4 {[%clk 0:04:39.3]}
8... Bg4 {[%clk 0:04:28.6]} 9. f3 {[%clk 0:04:34.4]} 9... Bh5 {[%clk 0:04:27.1]}
10. Bf4 {[%clk 0:04:17.2]} 10... Nbd7 {[%clk 0:04:19.4]} 11. Nf5 {[%clk
0:04:15.2]} 11... Qb6+ {[%clk 0:04:08.7]} 12. Kh1 {[%clk 0:04:13.3]} 12... Rfe8
{[%clk 0:03:34.7]} 13. Bxd6 {[%clk 0:03:55.5]} 13... Bd8 {[%clk 0:03:26.5]} 14.
a5 {[%clk 0:03:41.3]} 14... Qxb2 {[%clk 0:03:24.2]} 15. Na4 {[%clk 0:03:36]}
15... Nxe4 {[%clk 0:02:59.3]} 16. Nxb2 {[%clk 0:03:29.8]} 16... Nxd6 {[%clk
0:02:53.7]} 17. Nxd6 {[%clk 0:03:25.9]} 17... Re7 {[%clk 0:02:40.2]} 18. Nd3
{[%clk 0:02:59.7]} 18... Ne5 {[%clk 0:02:27.1]} 19. Nxe5 {[%clk 0:02:53.5]}
19... Rxe5 {[%clk 0:02:25]} 20. Nxb7 {[%clk 0:02:51.5]} 20... Bf6 {[%clk
0:02:17.1]} 21. g4 {[%clk 0:02:41.5]} 21... Bg6 {[%clk 0:02:10.7]} 22. Kg2
{[%clk 0:02:37.3]} 22... Re7 {[%clk 0:02:01.9]} 23. Nd6 {[%clk 0:02:31.6]} 23...
c5 {[%clk 0:01:56.1]} 24. Rb1 {[%clk 0:02:13.8]} 24... Bd4 {[%clk 0:01:53.1]}
25. f4 {[%clk 0:02:01.6]} 25... h6 {[%clk 0:01:26.5]} 26. f5 {[%clk 0:01:59.9]}
26... Bh7 {[%clk 0:01:17.7]} 27. c3 {[%clk 0:01:58.7]} 27... Bxc3 {[%clk
0:00:56.9]} 28. Qd5 {[%clk 0:01:57.8]} 28... Rf8 {[%clk 0:00:23]} 29. Nxf7
{[%clk 0:01:55.1]} 29... Rexf7 {[%clk 0:00:12.5]} 30. Qxf7+ {[%clk 0:01:54.2]}
30... Rxf7 {[%clk 0:00:11]} 31. Rb8# {[%clk 0:01:53.7]} 1-0

[Event "Live Chess"]
[Site "Chess.com"]
[Date "2023.05.20"]
[Round "-"]
[White "CocheseUK"]
[Black "Reggie016"]
[Result "1-0"]
[WhiteElo "1124"]
[BlackElo "1043"]
[TimeControl "300"]
[EndTime "10:07:24 PDT"]
[Termination "CocheseUK won by resignation"]

1. e4 {[%clk 0:04:52.2]} 1... e6 {[%clk 0:04:59.1]} 2. d4 {[%clk 0:04:50.6]}
2... d5 {[%clk 0:04:58.6]} 3. e5 {[%clk 0:04:49.3]} 3... c5 {[%clk 0:04:57.7]}
4. c3 {[%clk 0:04:47.3]} 4... Nc6 {[%clk 0:04:56.5]} 5. Nf3 {[%clk 0:04:45.1]}
5... Bd7 {[%clk 0:04:56.2]} 6. Be2 {[%clk 0:04:39.9]} 6... Qb6 {[%clk
0:04:54.1]} 7. O-O {[%clk 0:04:37.1]} 7... cxd4 {[%clk 0:04:47.7]} 8. cxd4
{[%clk 0:04:34]} 8... Nge7 {[%clk 0:04:41.9]} 9. Nc3 {[%clk 0:04:25.3]} 9... Nf5
{[%clk 0:04:39.6]} 10. Nb5 {[%clk 0:03:57.8]} 10... a6 {[%clk 0:04:33.8]} 11.
Nd6+ {[%clk 0:03:53.5]} 11... Nxd6 {[%clk 0:04:28.5]} 12. exd6 {[%clk
0:03:51.8]} 12... Bxd6 {[%clk 0:04:28.3]} 13. b3 {[%clk 0:03:30.6]} 13... O-O
{[%clk 0:04:27.7]} 14. Be3 {[%clk 0:03:27.2]} 14... Qc7 {[%clk 0:04:19.2]} 15.
Qc2 {[%clk 0:03:22.9]} 15... Rac8 {[%clk 0:04:14.8]} 16. Rac1 {[%clk 0:03:07]}
16... Rfe8 {[%clk 0:04:04.3]} 17. Bd3 {[%clk 0:02:57.7]} 17... g6 {[%clk
0:04:00.1]} 18. Qb2 {[%clk 0:02:35.7]} 18... Qb6 {[%clk 0:03:50.2]} 19. Rc2
{[%clk 0:02:30.8]} 19... e5 {[%clk 0:03:40]} 20. dxe5 {[%clk 0:02:19.2]} 20...
Nxe5 {[%clk 0:03:31.7]} 21. Bxb6 {[%clk 0:02:09.4]} 21... Nxd3 {[%clk
0:03:23.8]} 22. Qf6 {[%clk 0:01:55.2]} 22... Rxc2 {[%clk 0:03:14.7]} 23. Bd4
{[%clk 0:01:45.3]} 23... Be5 {[%clk 0:03:00.3]} 24. Nxe5 {[%clk 0:01:44]} 1-0

[Event "Live Chess"]
[Site "Chess.com"]
[Date "2023.05.20"]
[Round "-"]
[White "whitedjohn"]
[Black "Chesscoach_Golichenko"]
[Result "0-1"]
[WhiteElo "1656"]
[BlackElo "2647"]
[TimeControl "300"]
[EndTime "10:07:26 PDT"]
[Termination "Chesscoach_Golichenko won by resignation"]

1. e4 {[%clk 0:04:57]} 1... Nf6 {[%clk 0:04:58]} 2. e5 {[%clk 0:04:54.2]} 2...
Nd5 {[%clk 0:04:56.5]} 3. d4 {[%clk 0:04:53.7]} 3... d6 {[%clk 0:04:55.3]} 4. f4
{[%clk 0:04:52.2]} 4... dxe5 {[%clk 0:04:45.3]} 5. fxe5 {[%clk 0:04:50.4]} 5...
Bf5 {[%clk 0:04:43.6]} 6. Bd3 {[%clk 0:04:47.4]} 6... e6 {[%clk 0:04:37.9]} 7.
Bxf5 {[%clk 0:04:43.4]} 7... exf5 {[%clk 0:04:37.2]} 8. c3 {[%clk 0:04:41.2]}
8... Qh4+ {[%clk 0:04:34.2]} 9. Kf1 {[%clk 0:04:36.2]} 9... c5 {[%clk 0:04:24]}
10. Nf3 {[%clk 0:04:34.5]} 10... Qd8 {[%clk 0:04:22.1]} 11. Qb3 {[%clk
0:04:21.1]} 11... Nb6 {[%clk 0:04:16.5]} 12. Be3 {[%clk 0:04:14]} 12... c4
{[%clk 0:04:09.5]} 13. Qb5+ {[%clk 0:04:08.6]} 13... Nc6 {[%clk 0:04:04.5]} 14.
d5 {[%clk 0:03:18.9]} 14... Qxd5 {[%clk 0:04:02.3]} 15. Qxd5 {[%clk 0:03:16.3]}
15... Nxd5 {[%clk 0:04:01.3]} 0-1

[Event "Live Chess"]
[Site "Chess.com"]
[Date "2023.05.20"]
[Round "-"]
[White "MrDodgy"]
[Black "Olisingapore"]
[Result "1-0"]
[WhiteElo "2327"]
[BlackElo "1944"]
[TimeControl "300"]
[EndTime "10:07:37 PDT"]
[Termination "MrDodgy won by resignation"]

1. d4 {[%clk 0:04:56.3]} 1... Nf6 {[%clk 0:04:54.2]} 2. c4 {[%clk 0:04:49.1]}
2... e6 {[%clk 0:04:53.1]} 3. g3 {[%clk 0:04:44]} 3... d5 {[%clk 0:04:50.6]} 4.
Bg2 {[%clk 0:04:43.1]} 4... Be7 {[%clk 0:04:48.8]} 5. Nf3 {[%clk 0:04:40.6]}
5... O-O {[%clk 0:04:45.8]} 6. O-O {[%clk 0:04:39.6]} 6... dxc4 {[%clk
0:04:42.3]} 7. Qc2 {[%clk 0:04:38.8]} 7... a6 {[%clk 0:04:37.6]} 8. Qxc4 {[%clk
0:04:37.4]} 8... b5 {[%clk 0:04:23.6]} 9. Qc2 {[%clk 0:04:36.1]} 9... Nd5 {[%clk
0:04:22]} 10. Bd2 {[%clk 0:04:23.8]} 10... Bb7 {[%clk 0:04:20.6]} 11. e4 {[%clk
0:04:06.1]} 11... Nf6 {[%clk 0:04:11.8]} 12. e5 {[%clk 0:03:57.4]} 12... Nd5
{[%clk 0:04:10.6]} 13. Nc3 {[%clk 0:03:56.5]} 13... c5 {[%clk 0:03:54.9]} 14.
dxc5 {[%clk 0:03:46.1]} 14... Nxc3 {[%clk 0:03:50.3]} 15. Qxc3 {[%clk
0:03:38.6]} 15... Bd5 {[%clk 0:03:49.4]} 16. b4 {[%clk 0:03:31.1]} 16... Nc6
{[%clk 0:03:45.9]} 17. Rfd1 {[%clk 0:03:25.3]} 17... a5 {[%clk 0:03:42.9]} 18.
a3 {[%clk 0:03:23.4]} 18... Ra6 {[%clk 0:03:31.6]} 19. Be3 {[%clk 0:03:17.6]}
19... Qa8 {[%clk 0:03:26.4]} 20. Rxd5 {[%clk 0:02:36.8]} 20... exd5 {[%clk
0:03:24.2]} 21. Rd1 {[%clk 0:02:19.8]} 21... axb4 {[%clk 0:03:20.6]} 22. axb4
{[%clk 0:02:19.7]} 22... Ra3 {[%clk 0:03:19.4]} 23. Qe1 {[%clk 0:02:03.4]} 23...
Qa4 {[%clk 0:02:56.3]} 24. Bd2 {[%clk 0:01:55.3]} 24... Ra8 {[%clk 0:02:39.8]}
25. e6 {[%clk 0:01:51.1]} 25... f6 {[%clk 0:02:34.8]} 26. Nh4 {[%clk 0:01:42.7]}
26... Ra1 {[%clk 0:02:23.1]} 27. Rxa1 {[%clk 0:01:27]} 27... Qxa1 {[%clk
0:02:23]} 28. Bxd5 {[%clk 0:01:25.9]} 28... Qxe1+ {[%clk 0:01:52.4]} 29. Bxe1
{[%clk 0:01:25.8]} 29... Ra1 {[%clk 0:01:50.1]} 30. Bxc6 {[%clk 0:01:23.7]}
30... Rxe1+ {[%clk 0:01:49.1]} 31. Kg2 {[%clk 0:01:23.2]} 31... Rxe6 {[%clk
0:01:45.6]} 32. Bd5 {[%clk 0:01:19.7]} 32... Kf7 {[%clk 0:01:43.5]} 33. Nf5
{[%clk 0:01:14.8]} 33... g6 {[%clk 0:01:38.2]} 34. Nd4 {[%clk 0:01:13.9]} 34...
f5 {[%clk 0:01:22.7]} 35. Bxe6+ {[%clk 0:01:09.3]} 35... Kf6 {[%clk 0:01:21.1]}
36. Bd7 {[%clk 0:01:05.7]} 36... Ke5 {[%clk 0:01:18.3]} 37. Nxb5 {[%clk
0:01:04.1]} 37... Kd5 {[%clk 0:01:14.9]} 38. c6 {[%clk 0:01:03]} 38... Bd8
{[%clk 0:01:05.1]} 39. c7 {[%clk 0:00:53.8]} 39... Bxc7 {[%clk 0:01:03.8]} 40.
Nxc7+ {[%clk 0:00:53]} 40... Kd6 {[%clk 0:01:03.2]} 41. Bxf5 {[%clk 0:00:52.4]}
41... Kxc7 {[%clk 0:00:59.2]} 42. Bd3 {[%clk 0:00:49.7]} 42... Kc6 {[%clk
0:00:58.3]} 43. h4 {[%clk 0:00:48.7]} 43... Kb6 {[%clk 0:00:55.4]} 44. h5 {[%clk
0:00:48]} 44... gxh5 {[%clk 0:00:49.5]} 45. Kh3 {[%clk 0:00:47.9]} 1-0

[Event "Live Chess"]
[Site "Chess.com"]
[Date "2023.05.20"]
[Round "-"]
[White "wadsy27"]
[Black "MartaMost"]
[Result "1-0"]
[WhiteElo "2589"]
[BlackElo "1132"]
[TimeControl "300"]
[EndTime "10:07:37 PDT"]
[Termination "wadsy27 won by checkmate"]

1. e4 {[%clk 0:04:56.6]} 1... e5 {[%clk 0:04:57.3]} 2. Nf3 {[%clk 0:04:55.3]}
2... Nc6 {[%clk 0:04:55.4]} 3. Bb5 {[%clk 0:04:53.2]} 3... Qf6 {[%clk
0:04:35.3]} 4. Nc3 {[%clk 0:04:42.4]} 4... a6 {[%clk 0:04:33.7]} 5. Nd5 {[%clk
0:04:33.4]} 5... Qd6 {[%clk 0:04:26.5]} 6. Bc4 {[%clk 0:04:32.4]} 6... Na5
{[%clk 0:04:23.7]} 7. Bd3 {[%clk 0:04:28.4]} 7... c6 {[%clk 0:04:15.5]} 8. Ne3
{[%clk 0:04:25.2]} 8... Qc5 {[%clk 0:03:52.1]} 9. a3 {[%clk 0:04:21.1]} 9... d5
{[%clk 0:03:35.3]} 10. b4 {[%clk 0:04:20]} 10... Qb6 {[%clk 0:03:16.1]} 11. bxa5
{[%clk 0:04:18.2]} 11... Qxa5 {[%clk 0:03:12.8]} 12. O-O {[%clk 0:04:17.1]}
12... dxe4 {[%clk 0:03:11.1]} 13. Bxe4 {[%clk 0:04:16]} 13... Bc5 {[%clk
0:02:57.9]} 14. Bb2 {[%clk 0:04:13.3]} 14... Bxe3 {[%clk 0:02:53.9]} 15. fxe3
{[%clk 0:04:11.1]} 15... f6 {[%clk 0:02:49.6]} 16. Nxe5 {[%clk 0:04:08.6]} 16...
fxe5 {[%clk 0:02:46.5]} 17. Qh5+ {[%clk 0:04:07.4]} 17... g6 {[%clk 0:02:37.8]}
18. Bxg6+ {[%clk 0:04:06.4]} 18... hxg6 {[%clk 0:02:34.9]} 19. Qxg6+ {[%clk
0:04:01.3]} 19... Ke7 {[%clk 0:02:29.6]} 20. Rf7+ {[%clk 0:03:55.6]} 20... Ke8
{[%clk 0:02:25.1]} 21. Rh7+ {[%clk 0:03:27.4]} 21... Kf8 {[%clk 0:02:12.4]} 22.
Qg7+ {[%clk 0:03:22.5]} 22... Ke8 {[%clk 0:02:09]} 23. Qf7+ {[%clk 0:03:22.4]}
23... Kd8 {[%clk 0:02:05.6]} 24. Qf8# {[%clk 0:03:22.3]} 1-0

[Event "Live Chess"]
[Site "Chess.com"]
[Date "2023.05.20"]
[Round "-"]
[White "Davidagye"]
[Black "Prijmak"]
[Result "1-0"]
[WhiteElo "1671"]
[BlackElo "979"]
[TimeControl "300"]
[EndTime "10:07:42 PDT"]
[Termination "Davidagye won by resignation"]

1. e4 {[%clk 0:04:57.7]} 1... e5 {[%clk 0:04:58.2]} 2. Nc3 {[%clk 0:04:55.5]}
2... Nc6 {[%clk 0:04:56.4]} 3. Bc4 {[%clk 0:04:54.1]} 3... Nf6 {[%clk 0:04:53]}
4. d3 {[%clk 0:04:52.7]} 4... d6 {[%clk 0:04:51.6]} 5. Nge2 {[%clk 0:04:51.2]}
5... Bg4 {[%clk 0:04:49]} 6. h3 {[%clk 0:04:49.8]} 6... Be6 {[%clk 0:04:46.4]}
7. Bb3 {[%clk 0:04:48.2]} 7... Bxb3 {[%clk 0:04:44.4]} 8. axb3 {[%clk
0:04:47.8]} 8... a6 {[%clk 0:04:43.8]} 9. Kf1 {[%clk 0:04:47]} 9... Be7 {[%clk
0:04:42.5]} 10. g3 {[%clk 0:04:46.1]} 10... Qd7 {[%clk 0:04:39.4]} 11. Kg2
{[%clk 0:04:44.8]} 11... O-O {[%clk 0:04:37.8]} 12. f4 {[%clk 0:04:43.4]} 12...
h6 {[%clk 0:04:36]} 13. f5 {[%clk 0:04:40.6]} 13... Kh7 {[%clk 0:04:32]} 14. g4
{[%clk 0:04:37.2]} 14... g5 {[%clk 0:04:26.4]} 15. Ng3 {[%clk 0:04:34.7]} 15...
Nd4 {[%clk 0:04:22.3]} 16. h4 {[%clk 0:04:32.9]} 16... Kg7 {[%clk 0:04:18]} 17.
hxg5 {[%clk 0:04:27]} 17... hxg5 {[%clk 0:04:16]} 18. Bxg5 {[%clk 0:04:26.6]}
18... Rh8 {[%clk 0:04:09.8]} 19. Bxf6+ {[%clk 0:04:25.1]} 19... Bxf6 {[%clk
0:04:07]} 20. Nh5+ {[%clk 0:04:24.7]} 20... Kg8 {[%clk 0:03:55.5]} 21. Nxf6+
{[%clk 0:04:23.6]} 1-0